bitfinex-derivatives/quotes_BNBF0:USTF0_20250709
["timestamp","ask_amount","ask_price","bid_price","bid_amount"]
[1752093128978,3.35893297,668.67,668.04,1.54276813]
[1752093129276,3.35893297,668.68,668.05,1.54276813]
[1752093129472,3.35893297,668.68,668.06,1.54276813]
[1752093129677,3.35893297,668.68,668.07,1.54276813]
[1752093129973,3.35893297,668.68,667.99,2.661]
[1752093130171,3.35893297,668.68,668.0,1.54255072]
[1752093130375,3.35893297,668.68,668.01,1.54255072]
[1752093130575,3.35893297,668.68,668.02,1.54255072]
[1752093130771,3.35893297,668.68,668.03,1.54255072]
[1752093130975,3.35893297,668.68,668.04,1.54255072]
[1752093131176,3.35893297,668.69,668.05,1.54255072]
[1752093131377,3.35893297,668.69,668.06,1.54255072]
[1752093131679,3.35893297,668.69,668.07,1.54255072]
[1752093131880,3.35893297,668.74,667.99,2.661]
[1752093132076,3.35893297,668.74,668.0,1.54216645]
[1752093132375,3.35893297,668.74,668.01,1.54216645]
[1752093132575,3.35893297,668.73,668.02,1.54216645]
[1752093132779,3.35893297,668.73,668.03,1.54216645]
[1752093132977,3.35893297,668.73,668.04,1.54216645]
[1752093133175,3.35893297,668.74,667.99,2.661]
[1752093133380,3.35893297,668.74,668.0,1.54182031]
[1752093133581,3.35893297,668.75,668.01,1.54182031]
[1752093133778,3.35893297,668.74,668.02,1.54182031]
[1752093134081,3.35893297,668.74,668.03,1.54182031]
[1752093134281,3.35893297,668.74,668.04,1.54182031]
[1752093134481,3.35893297,668.74,667.99,2.661]
[1752093134781,3.35893297,668.74,668.0,1.5419295]
[1752093134980,3.35893297,668.74,668.01,1.5419295]
[1752093135183,3.35893297,668.74,668.02,1.5419295]
[1752093135482,3.35893297,668.73,668.03,1.5419295]
[1752093135680,3.35893297,668.73,667.99,2.661]
[1752093135982,3.35893297,668.73,668.0,1.54175496]
[1752093136179,0.26030856,668.83,668.01,1.54175496]
[1752093136180,3.35893297,668.74,668.01,1.54175496]
[1752093136382,3.35893297,668.74,668.02,1.54175496]
[1752093136580,3.35893297,668.74,668.03,1.54175496]
[1752093136784,3.35893297,668.73,667.99,2.661]
[1752093136980,3.35893297,668.73,668.0,1.54158849]
[1752093137185,3.35893297,668.73,668.01,1.54158849]
[1752093137385,3.35893297,668.73,668.02,1.54158849]
[1752093137581,3.35893297,668.73,668.03,1.54158849]
[1752093137780,3.35893297,668.73,667.99,2.661]
[1752093137983,3.35893297,668.73,668.0,1.54143589]
[1752093138180,3.35893297,668.74,668.01,1.54143589]
[1752093138381,3.35893297,668.72,667.99,2.661]
[1752093138584,3.35893297,668.72,668.0,1.54127926]
[1752093138786,3.35893297,668.72,667.99,2.661]
[1752093138986,3.35893297,668.72,668.0,1.54127926]
[1752093139186,3.35893297,668.72,667.99,2.661]
[1752093139386,3.35893297,668.72,668.0,1.54115653]
[1752093139586,3.35893297,668.72,667.99,2.661]
[1752093139788,3.35893297,668.72,668.0,1.54115653]
[1752093139984,3.35893297,668.72,667.99,2.661]
[1752093140185,3.35893297,668.72,668.0,1.54115653]
[1752093140383,3.35893297,668.72,667.99,2.661]
[1752093140586,3.35893297,668.72,668.0,1.54104858]
[1752093140784,3.35893297,668.72,667.99,2.661]
[1752093140988,3.35893297,668.72,668.0,1.54104858]
[1752093141187,3.35893297,668.72,667.99,2.661]
[1752093141889,3.35893297,668.67,667.99,2.661]
[1752093143289,3.35893297,668.66,667.99,2.661]
[1752093143489,3.35893297,668.65,667.99,2.661]
[1752093145793,3.35893297,668.68,667.99,2.661]
[1752093147693,3.35893297,668.67,667.99,2.661]
[1752093148194,3.35893297,668.75,667.99,2.661]
[1752093148394,3.35893297,668.73,667.99,2.661]
[1752093148889,3.35893297,668.71,667.99,2.661]
[1752093149094,3.35893297,668.68,667.99,2.661]
[1752093150492,3.35893297,668.69,667.99,2.661]
[1752093150994,3.35893297,668.65,667.99,2.661]
[1752093151190,3.35893297,668.66,667.99,2.661]
[1752093151690,3.35893297,668.65,667.99,2.661]
[1752093151890,3.35893297,668.62,667.99,2.661]
[1752093152195,3.35893297,668.66,667.99,2.661]
[1752093152393,3.35893297,668.67,667.99,2.661]
[1752093152592,3.35893297,668.66,667.99,2.661]
[1752093153104,3.35893297,668.68,667.99,2.661]
[1752093153293,3.35893297,668.65,667.99,2.661]
[1752093154097,3.35893297,668.66,667.99,2.661]
[1752093154595,3.35893297,668.65,667.99,2.661]
[1752093155193,3.35893297,668.66,667.99,2.661]
[1752093155599,3.35893297,668.65,667.99,2.661]
[1752093156195,3.35893297,668.63,667.99,2.661]
[1752093156998,3.35893297,668.61,667.99,2.661]
[1752093157196,3.35893297,668.62,667.99,2.661]
[1752093158096,3.35893297,668.64,667.99,2.661]
[1752093158300,3.35893297,668.61,667.99,2.661]
[1752093158998,3.35893297,668.61,667.52,0.26044005]
[1752093159198,3.35893297,668.62,667.53,1.53895541]
[1752093159401,3.35893297,668.63,667.54,1.53895541]
[1752093159599,3.35893297,668.63,667.55,1.53895541]
[1752093159902,3.35893297,668.62,667.56,1.53895541]
[1752093160100,3.35893297,668.62,667.57,1.53895541]
[1752093160296,3.35893297,668.62,667.52,0.26044005]
[1752093160297,3.35893297,668.63,667.58,1.53895541]
[1752093160499,3.35893297,668.63,667.59,1.53895541]
[1752093160699,3.35893297,668.6,667.6,1.53895541]
[1752093161003,3.35893297,668.6,667.61,1.53895541]
[1752093161199,3.35893297,668.61,667.62,1.53895541]
[1752093161404,3.35893297,668.6,667.63,1.53895541]
[1752093161604,3.35893297,668.6,667.64,1.53895541]
[1752093161804,3.35893297,668.6,667.65,1.53895541]
[1752093162001,3.35893297,668.6,667.66,1.53895541]
[1752093162204,3.35893297,668.61,667.67,1.53895541]
[1752093162402,3.35893297,668.61,667.68,1.53895541]
[1752093162604,3.35893297,668.61,667.69,1.53895541]
[1752093162900,3.35893297,668.61,667.7,1.53895541]
[1752093163105,3.35893297,668.63,667.71,1.53895541]
[1752093163305,3.35893297,668.63,667.72,1.53895541]
[1752093163500,3.35893297,668.63,667.73,1.53895541]
[1752093163703,3.35893297,668.63,667.65,1.901]
[1752093163905,3.35893297,668.63,667.66,1.53792954]
[1752093164102,3.35893297,668.64,667.67,1.53792954]
[1752093164301,3.35893297,668.64,667.68,1.53792954]
[1752093164503,3.35893297,668.64,667.69,1.53792954]
[1752093164802,3.35893297,668.64,667.7,1.53792954]
[1752093165007,3.35893297,668.64,667.71,1.53792954]
[1752093165208,3.35893297,668.65,667.72,1.53792954]
[1752093165405,3.35893297,668.65,667.73,1.53792954]
[1752093165704,3.35893297,668.65,667.65,1.901]
[1752093166008,3.35893297,668.65,667.66,1.53688984]
[1752093166206,3.35893297,668.65,667.67,1.53688984]
[1752093166407,3.35893297,668.59,667.68,1.53688984]
[1752093166714,3.35893297,668.59,667.69,1.53688984]
[1752093167008,3.35893297,668.59,667.7,1.53688984]
[1752093167208,3.35893297,668.59,667.71,1.53688984]
[1752093167409,3.35893297,668.6,667.72,1.53688984]
[1752093167709,3.35893297,668.59,667.73,1.53688984]
[1752093167904,3.35893297,668.59,667.65,1.901]
[1752093168206,3.35893297,668.6,667.66,1.53668251]
[1752093168407,3.35893297,668.66,667.67,1.53668251]
[1752093168606,3.35893297,668.66,667.68,1.53668251]
[1752093168805,3.35893297,668.66,667.69,1.53668251]
[1752093169005,3.35893297,668.66,667.7,1.53668251]
[1752093169208,3.35893297,668.66,667.71,1.53668251]
[1752093169409,3.35893297,668.66,667.72,1.53668251]
[1752093169608,3.35893297,668.66,667.73,1.53668251]
[1752093169805,3.35893297,668.66,667.74,1.53668251]
[1752093170110,3.35893297,668.65,667.75,1.53668251]
[1752093170307,3.35893297,668.66,667.76,1.53668251]
[1752093170510,3.35893297,668.66,667.77,1.53668251]
[1752093170705,3.35893297,668.66,667.78,1.53668251]
[1752093170907,3.35893297,668.66,667.79,1.53668251]
[1752093171109,3.35893297,668.66,667.65,1.901]
[1752093171110,3.35893297,668.65,667.65,1.901]
[1752093171309,3.35893297,668.65,667.66,1.53683493]
[1752093171508,3.35893297,668.64,667.67,1.53683493]
[1752093171712,3.35893297,668.64,667.68,1.53683493]
[1752093171912,3.35893297,668.64,667.69,1.53683493]
[1752093172109,3.35893297,668.64,667.7,1.53683493]
[1752093172309,3.35893297,668.64,667.71,1.53683493]
[1752093172509,3.35893297,668.63,667.72,1.53683493]
[1752093172714,3.35893297,668.63,667.73,1.53683493]
[1752093173014,3.35893297,668.62,667.74,1.53683493]
[1752093173215,3.35893297,668.63,667.75,1.53683493]
[1752093173411,3.35893297,668.63,667.76,1.53683493]
[1752093173612,3.35893297,668.63,667.77,1.53683493]
[1752093173813,3.35893297,668.63,667.78,1.53683493]
[1752093174012,3.35893297,668.62,667.79,1.53683493]
[1752093174219,3.35893297,668.61,667.65,1.901]
[1752093174418,3.35893297,668.61,667.66,1.53729744]
[1752093174620,3.35893297,668.61,667.67,1.53729744]
[1752093174817,3.35893297,668.61,667.65,1.901]
[1752093174818,3.35893297,668.61,667.68,1.53729744]
[1752093175021,3.35893297,668.61,667.65,1.901]
[1752093175022,3.35893297,668.61,667.69,1.53729744]
[1752093175224,3.35893297,668.6,667.7,1.53729744]
[1752093175422,3.35893297,668.6,667.71,1.53729744]
[1752093175618,3.35893297,668.6,667.72,1.53729744]
[1752093175828,3.35893297,668.6,667.73,1.53729744]
[1752093176117,3.35893297,668.59,667.74,1.53729744]
[1752093176322,3.35893297,668.6,667.75,1.53729744]
[1752093176522,3.35893297,668.6,667.76,1.53729744]
[1752093176819,3.35893297,668.6,667.77,1.53729744]
[1752093177018,3.35893297,668.6,667.78,1.53729744]
[1752093177222,3.35893297,668.58,667.79,1.53729744]
[1752093177517,3.35893297,668.58,667.54,1.68059735]
[1752093177722,3.35893297,668.57,667.8,2.747]
[1752093178028,3.35893297,668.55,667.8,2.747]
[1752093178218,3.35893297,668.56,667.8,2.747]
[1752093179319,3.35893297,668.51,667.8,2.747]
[1752093179818,3.35893297,668.53,667.8,2.747]
[1752093180834,3.35893297,668.52,667.8,2.747]
[1752093181121,3.35893297,668.51,667.8,2.747]
[1752093181825,3.35893297,668.49,667.8,2.747]
[1752093182220,3.35893297,668.5,667.8,2.747]
[1752093183029,3.35893297,668.49,667.8,2.747]
[1752093183327,3.35893297,668.51,667.8,2.747]
[1752093183527,3.35893297,668.49,667.8,2.747]
[1752093183728,3.35893297,668.48,667.8,2.747]
[1752093184129,3.35893297,668.43,667.8,2.747]
[1752093184428,3.35893297,668.44,667.8,2.747]
[1752093184629,3.35893297,668.46,667.8,2.747]
[1752093185228,3.35893297,668.43,667.8,2.747]
[1752093188328,3.35893297,668.45,667.8,2.747]
[1752093189233,3.35893297,668.62,667.8,2.747]
[1752093189533,3.35893297,668.63,667.8,2.747]
[1752093189933,3.35893297,668.7,667.8,2.747]
[1752093190131,3.35893297,668.69,667.8,2.747]
[1752093190335,3.35893297,668.71,667.81,1.53912082]
[1752093190530,3.35893297,668.71,667.8,2.747]
[1752093190731,3.35893297,668.71,667.81,1.53916839]
[1752093190934,3.35893297,668.71,667.8,2.747]
[1752093191130,3.35893297,668.71,667.81,1.53916839]
[1752093191332,3.35893297,668.7,667.8,2.747]
[1752093191541,3.35893297,668.7,667.81,1.53929862]
[1752093191732,3.35893297,668.68,667.8,2.747]
[1752093191932,3.35893297,668.68,667.81,1.53929862]
[1752093192236,3.35893297,668.68,667.8,2.747]
[1752093192437,3.35893297,668.68,667.81,1.53939042]
[1752093192641,3.35893297,668.68,667.82,1.53939042]
[1752093192840,3.35893297,668.68,667.83,1.53939042]
[1752093193038,3.35893297,668.68,667.84,1.53939042]
[1752093193238,3.35893297,668.68,667.8,2.747]
[1752093193537,3.35893297,668.62,667.81,1.53948773]
[1752093193740,3.35893297,668.62,667.82,1.53948773]
[1752093193936,3.35893297,668.61,667.83,1.53948773]
[1752093194141,3.35893297,668.61,667.84,1.53948773]
[1752093194446,3.35893297,668.61,667.8,2.747]
[1752093194638,3.35893297,668.61,667.81,1.53550941]
[1752093194842,3.35893297,668.61,667.82,1.53550941]
[1752093195041,3.35893297,668.61,667.83,1.53550941]
[1752093195342,3.35893297,668.6,667.84,1.53550941]
[1752093195550,3.35893297,668.61,667.8,2.747]
[1752093195743,3.35893297,668.59,667.81,1.5356477]
[1752093195942,3.35893297,668.58,667.82,1.5356477]
[1752093196243,3.35893297,668.59,667.83,1.5356477]
[1752093196449,3.35893297,668.58,667.84,1.5356477]
[1752093196644,3.35893297,668.58,667.85,1.5356477]
[1752093196849,3.35893297,668.58,667.8,2.747]
[1752093197045,3.35893297,668.58,667.81,1.53576807]
[1752093197246,3.35893297,668.57,667.82,1.53576807]
[1752093197449,3.35893297,668.57,667.83,1.53576807]
[1752093197745,3.35893297,668.57,667.84,1.53576807]
[1752093198042,3.35893297,668.57,667.85,1.53576807]
[1752093198247,3.35893297,668.59,667.86,1.53602201]
[1752093198450,3.35893297,668.59,667.8,2.747]
[1752093198451,3.35893297,668.58,667.8,2.747]
[1752093198643,3.35893297,668.58,667.81,1.53606392]
[1752093198943,3.35893297,668.58,667.82,1.53606392]
[1752093199147,3.35893297,668.57,667.83,1.53606392]
[1752093199346,3.35893297,668.57,667.84,1.53606392]
[1752093199545,3.35893297,668.57,667.85,1.53606392]
[1752093199844,3.35893297,668.57,667.86,1.53606392]
[1752093200047,3.35893297,668.57,667.8,2.747]
[1752093200247,3.35893297,668.56,667.81,1.53635524]
[1752093200544,3.35893297,668.57,667.82,1.53635524]
[1752093200855,3.35893297,668.57,667.83,1.53635524]
[1752093201147,3.35893297,668.57,667.84,1.53635524]
[1752093201444,3.35893297,668.56,667.85,1.53635524]
[1752093201645,3.35893297,668.55,667.86,1.53635524]
[1752093201845,3.35893297,668.55,667.87,1.53635524]
[1752093202045,3.35893297,668.56,667.8,2.747]
[1752093202249,3.35893297,668.55,667.81,1.53657059]
[1752093202445,3.35893297,668.55,667.82,1.53657059]
[1752093202653,3.35893297,668.55,667.83,1.53657059]
[1752093202946,3.35893297,668.53,667.84,1.53657059]
[1752093203145,3.35893297,668.53,667.85,1.53657059]
[1752093203350,3.35893297,668.54,667.86,1.53657059]
[1752093203551,3.35893297,668.54,667.87,1.53657059]
[1752093203747,3.35893297,668.54,667.8,2.747]
[1752093203951,3.35893297,668.54,667.81,1.53696415]
[1752093204248,3.35893297,668.54,667.82,1.53696415]
[1752093204447,3.35893297,668.54,667.83,1.53696415]
[1752093204652,3.35893297,668.54,667.84,1.53696415]
[1752093204852,3.35893297,668.54,667.85,1.53696415]
[1752093205053,3.35893297,668.54,667.86,1.53696415]
[1752093205252,3.35893297,668.53,667.87,1.53696415]
[1752093205553,3.35893297,668.53,667.88,1.53696415]
[1752093205849,3.35893297,668.54,667.8,2.747]
[1752093206047,3.35893297,668.51,667.8,2.747]
[1752093206551,3.35893297,668.5,667.8,2.747]
[1752093206949,3.35893297,668.38,667.8,2.747]
[1752093208255,3.35893297,668.37,667.8,2.747]
[1752093211461,3.35893297,668.4,667.8,2.747]
[1752093213163,0.26030856,668.83,667.8,2.747]
[1752093213164,3.35893297,668.41,667.8,2.747]
[1752093216468,3.35893297,668.4,667.8,2.747]
[1752093216669,3.35893297,668.39,667.8,2.747]
[1752093217971,3.35893297,668.4,667.8,2.747]
[1752093218368,3.35893297,668.43,667.8,2.747]
[1752093220180,3.35893297,668.44,667.8,2.747]
[1752093220874,3.35893297,668.43,667.8,2.747]
[1752093221176,3.35893297,668.44,667.8,2.747]
[1752093221375,3.35893297,668.43,667.8,2.747]
[1752093221675,3.35893297,668.44,667.8,2.747]
[1752093222677,3.35893297,668.44,667.52,0.26044005]
[1752093222878,3.35893297,668.43,667.53,1.53818142]
[1752093223173,3.35893297,668.43,667.54,1.53818142]
[1752093223474,3.35893297,668.43,667.55,1.53818142]
[1752093223673,3.35893297,668.43,667.56,1.53818142]
[1752093223878,3.35893297,668.43,667.57,1.53818142]
[1752093224072,3.35893297,668.43,667.58,1.53818142]
[1752093224275,3.35893297,668.43,667.59,1.53818142]
[1752093224476,3.35893297,668.42,667.6,1.53818142]
[1752093224678,3.35893297,668.42,667.61,1.53818142]
[1752093224876,3.35893297,668.41,667.62,1.53818142]
[1752093225076,3.35893297,668.42,667.63,1.53818142]
[1752093225275,3.35893297,668.42,667.64,1.53818142]
[1752093225479,3.35893297,668.42,667.65,1.53818142]
[1752093225776,3.35893297,668.42,667.66,1.53818142]
[1752093225980,3.35893297,668.42,667.67,1.53818142]
[1752093226181,3.35893297,668.42,667.68,1.53818142]
[1752093226379,3.35893297,668.42,667.69,1.53818142]
[1752093226681,3.35893297,668.42,667.7,1.53818142]
[1752093226882,3.35893297,668.42,667.71,1.53818142]
[1752093227080,3.35893297,668.42,667.72,1.53818142]
[1752093227278,3.35893297,668.42,667.73,1.53818142]
[1752093227582,3.35893297,668.42,667.74,1.53818142]
[1752093227781,3.35893297,668.42,667.75,1.53818142]
[1752093227977,3.35893297,668.42,667.65,2.255]
[1752093228277,3.35893297,668.42,667.66,1.53799489]
[1752093228482,3.35893297,668.42,667.67,1.53799489]
[1752093228681,3.35893297,668.42,667.68,1.53799489]
[1752093228877,3.35893297,668.42,667.69,1.53799489]
[1752093229077,0.26030856,668.83,667.7,1.53799489]
[1752093229078,3.35893297,668.39,667.7,1.53799489]
[1752093229282,3.35893297,668.4,667.71,1.53799489]
[1752093229479,3.35893297,668.4,667.72,1.53799489]
[1752093229784,3.35893297,668.4,667.65,2.255]
[1752093229985,3.35893297,668.4,667.66,1.53794889]
[1752093230184,3.35893297,668.4,667.67,1.53794889]
[1752093230482,3.35893297,668.4,667.68,1.53794889]
[1752093230682,3.35893297,668.4,667.69,1.53794889]
[1752093230879,3.35893297,668.4,667.7,1.53794889]
[1752093231081,3.35893297,668.39,667.71,1.53794889]
[1752093231284,3.35893297,668.37,667.65,2.255]
[1752093231484,3.35893297,668.37,667.66,1.53782667]
[1752093231682,3.35893297,668.37,667.67,1.53782667]
[1752093231882,3.35893297,668.38,667.68,1.53782667]
[1752093232082,3.35893297,668.38,667.69,1.53782667]
[1752093232286,3.35893297,668.38,667.7,1.53782667]
[1752093232485,3.35893297,668.38,667.71,1.53782667]
[1752093232783,3.35893297,668.38,667.65,2.255]
[1752093232985,3.35893297,668.38,667.66,1.53777296]
[1752093233182,3.35893297,668.39,667.67,1.53777296]
[1752093233381,3.35893297,668.38,667.68,1.53777296]
[1752093233686,3.35893297,668.39,667.69,1.53777296]
[1752093233884,3.35893297,668.39,667.7,1.53777296]
[1752093234186,3.35893297,668.39,667.71,1.53777296]
[1752093234486,3.35893297,668.39,667.65,2.255]
[1752093234688,3.35893297,668.39,667.66,1.53768598]
[1752093234884,3.35893297,668.39,667.67,1.53768598]
[1752093235088,3.35893297,668.39,667.68,1.53768598]
[1752093235384,3.35893297,668.39,667.69,1.53768598]
[1752093235586,3.35893297,668.38,667.7,1.53768598]
[1752093235890,3.35893297,668.38,667.71,1.53768598]
[1752093236088,3.35893297,668.38,667.65,2.255]
[1752093236289,3.35893297,668.38,667.66,1.53763575]
[1752093236490,3.35893297,668.37,667.67,1.53763575]
[1752093236691,3.35893297,668.37,667.68,1.53763575]
[1752093236990,3.35893297,668.37,667.69,1.53763575]
[1752093237190,3.35893297,668.37,667.7,1.53763575]
[1752093237387,3.35893297,668.37,667.71,1.53763575]
[1752093237690,3.35893297,668.37,667.65,2.255]
[1752093237990,3.35893297,668.38,667.66,1.53758958]
[1752093238190,0.26030856,668.83,667.67,1.53758958]
[1752093238191,3.35893297,668.36,667.67,1.53758958]
[1752093238388,3.35893297,668.38,667.68,1.53758958]
[1752093238686,3.35893297,668.38,667.69,1.53758958]
[1752093238891,3.35893297,668.37,667.7,1.53758958]
[1752093239092,3.35893297,668.37,667.71,1.53758958]
[1752093239388,3.35893297,668.37,667.65,2.255]
[1752093239587,3.35893297,668.37,667.66,1.53753787]
[1752093239791,3.35893297,668.36,667.67,1.53753787]
[1752093240088,3.35893297,668.36,667.68,1.53753787]
[1752093240286,3.35893297,668.36,667.65,2.255]
[1752093240490,3.35893297,668.36,667.66,1.53759308]
[1752093240686,3.35893297,668.36,667.67,1.53759308]
[1752093240889,3.35893297,668.36,667.68,1.53759308]
[1752093241192,3.35893297,668.36,667.65,2.255]
[1752093241391,3.35893297,668.36,667.66,1.53759296]
[1752093241592,3.35893297,668.37,667.67,1.53759296]
[1752093241790,3.35893297,668.36,667.68,1.53759296]
[1752093242094,3.35893297,668.36,667.65,2.255]
[1752093242294,3.35893297,668.36,667.66,1.53746627]
[1752093242492,3.35893297,668.36,667.67,1.53746627]
[1752093242789,3.35893297,668.36,667.65,2.255]
[1752093243093,0.26030856,668.83,667.66,1.53742202]
[1752093243094,3.35893297,668.35,667.66,1.53742202]
[1752093243393,3.35893297,668.35,667.65,2.255]
[1752093243394,3.35893297,668.37,667.67,1.53742202]
[1752093243594,3.35893297,668.35,667.65,2.255]
[1752093243794,3.35893297,668.35,667.66,1.53734241]
[1752093243990,3.35893297,668.35,667.67,1.53734241]
[1752093244292,3.35893297,668.35,667.65,2.255]
[1752093244494,3.35893297,668.35,667.66,1.53726586]
[1752093244692,3.35893297,668.35,667.67,1.53726586]
[1752093244895,3.35893297,668.35,667.65,2.255]
[1752093245192,3.35893297,668.35,667.66,1.53726586]
[1752093245492,3.35893297,668.36,667.65,2.255]
[1752093245697,3.35893297,668.37,667.66,1.53719678]
[1752093245898,3.35893297,668.37,667.67,1.53719678]
[1752093246194,3.35893297,668.37,667.65,2.255]
[1752093246397,3.35893297,668.37,667.66,1.53719678]
[1752093246603,3.35893297,668.37,667.65,2.255]
[1752093246604,3.35893297,668.37,667.67,1.53719678]
[1752093246796,3.35893297,668.37,667.65,2.255]
[1752093246998,3.35893297,668.37,667.66,1.53713023]
[1752093247197,3.35893297,668.37,667.67,1.53713023]
[1752093247396,3.35893297,668.37,667.65,2.255]
[1752093247600,3.35893297,668.37,667.66,1.53706604]
[1752093247899,0.26030856,668.83,667.65,2.255]
[1752093247900,3.35893297,668.36,667.67,1.53706604]
[1752093248106,3.35893297,668.35,667.65,2.255]
[1752093248298,3.35893297,668.36,667.66,1.53706627]
[1752093248498,3.35893297,668.36,667.65,2.255]
[1752093248801,3.35893297,668.35,667.66,1.53700419]
[1752093249002,3.35893297,668.35,667.65,2.255]
[1752093249199,3.35893297,668.35,667.66,1.53700419]
[1752093249399,3.35893297,668.34,667.65,2.255]
[1752093251402,3.35893297,668.33,667.65,2.255]
[1752093251705,3.35893297,668.32,667.65,2.255]
[1752093253103,3.35893297,668.3,667.65,2.255]
[1752093253309,3.35893297,668.35,667.66,1.53699942]
[1752093253506,3.35893297,668.35,667.65,2.255]
[1752093253806,3.35893297,668.35,667.66,1.53699661]
[1752093254000,3.35893297,668.35,667.65,2.255]
[1752093254201,3.35893297,668.35,667.66,1.53694287]
[1752093254405,3.35893297,668.28,667.65,2.255]
[1752093258309,3.35893297,668.26,667.65,2.255]
[1752093258710,3.35893297,668.26,667.37,0.2605395]
[1752093258909,3.35893297,668.26,667.38,1.53721085]
[1752093259111,3.35893297,668.26,667.39,1.53721085]
[1752093259315,3.35893297,668.26,667.4,1.53721085]
[1752093259511,3.35893297,668.26,667.41,1.53721085]
[1752093259711,3.35893297,668.26,667.42,1.53721085]
[1752093259913,3.35893297,668.26,667.43,1.53721085]
[1752093260112,3.35893297,668.26,667.44,1.53721085]
[1752093260317,3.35893297,668.28,667.45,1.53721085]
[1752093260617,3.35893297,668.27,667.46,1.53721085]
[1752093260814,3.35893297,668.27,667.47,1.53721085]
[1752093261018,3.35893297,668.27,667.48,1.53721085]
[1752093261219,3.35893297,668.27,667.49,1.53721085]
[1752093261515,3.35893297,668.25,667.5,1.53721085]
[1752093261716,3.35893297,668.25,667.51,1.53721085]
[1752093261915,3.35893297,668.25,667.52,1.53721085]
[1752093262119,3.35893297,668.25,667.53,1.53721085]
[1752093262315,3.35893297,668.23,667.54,1.53721085]
[1752093262514,3.35893297,668.23,667.55,1.53721085]
[1752093262720,3.35893297,668.23,667.56,1.53721085]
[1752093262918,3.35893297,668.23,667.53,1.916]
[1752093262919,3.35893297,668.23,667.57,1.53781787]
[1752093263119,3.35893297,668.2,667.53,1.916]
[1752093263319,3.35893297,668.21,667.54,1.53808814]
[1752093263514,3.35893297,668.24,667.55,1.53808814]
[1752093263719,3.35893297,668.24,667.56,1.53808814]
[1752093264015,3.35893297,668.24,667.57,1.53808814]
[1752093264223,3.35893297,668.24,667.53,1.916]
[1752093264417,3.35893297,668.23,667.54,1.53823526]
[1752093264615,3.35893297,668.23,667.55,1.53823526]
[1752093264814,3.35893297,668.23,667.56,1.53823526]
[1752093265019,3.35893297,668.23,667.57,1.53823526]
[1752093265217,3.35893297,668.23,667.53,1.916]
[1752093265419,0.26030856,668.83,667.53,1.916]
[1752093265420,3.35893297,668.22,667.54,1.53858729]
[1752093265619,3.35893297,668.22,667.55,1.53858729]
[1752093265916,3.35893297,668.22,667.56,1.53858729]
[1752093266122,3.35893297,668.22,667.57,1.53858729]
[1752093266416,3.35893297,668.22,667.58,1.53858729]
[1752093266617,3.35893297,668.22,667.53,1.916]
[1752093266822,3.35893297,668.22,667.54,1.53850522]
[1752093267023,3.35893297,668.22,667.55,1.53850522]
[1752093267223,3.35893297,668.22,667.56,1.53850522]
[1752093267422,3.35893297,668.22,667.57,1.53850522]
[1752093267619,3.35893297,668.22,667.58,1.53850522]
[1752093267823,3.35893297,668.22,667.53,1.916]
[1752093268020,3.35893297,668.22,667.54,1.53844497]
[1752093268225,3.35893297,668.22,667.55,1.53844497]
[1752093268424,3.35893297,668.27,667.56,1.53844497]
[1752093268621,3.35893297,668.27,667.57,1.53844497]
[1752093268821,3.35893297,668.27,667.58,1.53844497]
[1752093269025,3.35893297,668.27,667.59,1.53844497]
[1752093269221,3.35893297,668.27,667.6,1.53844497]
[1752093269421,3.35893297,668.27,667.61,1.53844497]
[1752093269625,3.35893297,668.27,667.62,1.53844497]
[1752093269823,3.35893297,668.27,667.53,1.916]
[1752093270027,3.35893297,668.25,667.54,1.53835183]
[1752093270233,3.35893297,668.25,667.55,1.53835183]
[1752093270428,3.35893297,668.25,667.56,1.53835183]
[1752093270627,3.35893297,668.25,667.57,1.53835183]
[1752093270824,3.35893297,668.25,667.58,1.53835183]
[1752093271128,3.35893297,668.25,667.59,1.53835183]
[1752093271327,3.35893297,668.25,667.6,1.53835183]
[1752093271524,3.35893297,668.33,667.61,1.53835183]
[1752093271726,3.35893297,668.33,667.62,1.53835183]
[1752093271929,3.35893297,668.33,667.63,1.53835183]
[1752093272130,3.35893297,668.34,667.64,1.53835183]
[1752093272330,3.35893297,668.34,667.53,1.916]
[1752093272530,3.35893297,668.34,667.54,1.53829752]
[1752093272826,3.35893297,668.34,667.55,1.53829752]
[1752093273129,3.35893297,668.34,667.53,1.916]
[1752093273130,3.35893297,668.34,667.56,1.53829752]
[1752093273325,3.35893297,668.35,667.57,1.53829752]
[1752093273524,3.35893297,668.34,667.58,1.53829752]
[1752093273828,3.35893297,668.34,667.59,1.53829752]
[1752093274029,3.35893297,668.26,667.6,1.53829752]
[1752093274226,3.35893297,668.26,667.61,1.53829752]
[1752093274532,3.35893297,668.26,667.62,1.53829752]
[1752093274729,3.35893297,668.26,667.63,1.53829752]